{"text_format":"3","workbook":"xlsx","n_sheets":2,"sheets":["البدء","موازنة حفل الزواج"],"read":"whole","date_system":"1900"}

{"sheet":"البدء","index":0,"n_rows":7,"n_cols":2,"rows_kept":7}
[null,"حول هذا القالب"]
[null,"استخدم هذا القالب لتسجيل مصاريف حفل الزفاف الفعلية على عناصر مختلفة وتعقبها مقابل مبالغ الموازنة."]
[null,"أدخل المصاريف على الملابس والديكورات والزهور والموسيقى والصور فوتوغرافية وحفل الاستقبال والخطابات والنقل والعناصر المتنوعة في الجداول الخاصة."]
[null,"يتم حساب إجمالي المصاريف المقدرة والإجمالي الفعلي تلقائيًا."]
[null,"ملاحظة: "]
[null,"تم توفير إرشادات إضافية في العمود A في ورقة عمل موازنة حفل الزفاف. تم إخفاء هذا النص عن قصد. لإزالة النص، حدد العمود A، ثم حدد \"حذف\". لإظهار النص، حدد العمود A، ثم قم بتغيير لون الخط."]
[null,"للتعرّف على المزيد حول الجداول، اضغط على SHIFT ثم F10 داخل جدول، وحدد الخيار TABLE، ثم حدد ALTERNATIVE TEXT."]

{"sheet":"موازنة حفل الزواج","index":1,"n_rows":93,"n_cols":4,"rows_kept":93,"merged":[[0,1,0,3],[2,1,2,3],[6,1,6,3],[15,1,15,3],[25,1,25,3],[34,1,34,3],[43,1,43,3],[50,1,50,3],[59,1,59,3],[68,1,68,3],[77,1,77,3],[85,1,85,3]]}
[null,"موازنة حفل الزواج"]
[]
[null,"إجمالي المصروفات "]
[null,"البند ","المقدرة","الفعلية"]
[null,"إجمالي المصروفات ",{"$f":"SUM(الملابس[[#Totals],[المقدرة]],الديكورات[[#Totals],[المقدرة]],الهدايا[[#Totals],[المقدرة]],الزهور[[#Totals],[المقدرة]],الموسيقى[[#Totals],[المقدرة]],التصوير[[#Totals],[المقدرة]],الاستقبال[[#Totals],[المقدرة]],الخطابات_والطباعة[[#Totals],[المقدرة]],النقل[[#Totals],[المقدرة]],مصاريف_أخرى[[#Totals],[المقدرة]])","v":0},{"$f":"SUM(الملابس[[#Totals],[الفعلية]],الديكورات[[#Totals],[الفعلية]],الهدايا[[#Totals],[الفعلية]],الزهور[[#Totals],[الفعلية]],الموسيقى[[#Totals],[الفعلية]],التصوير[[#Totals],[الفعلية]],الاستقبال[[#Totals],[الفعلية]],الخطابات_والطباعة[[#Totals],[الفعلية]],النقل[[#Totals],[الفعلية]],مصاريف_أخرى[[#Totals],[الفعلية]],)","v":0}]
[]
[null,"الملابس"]
[null,"البند ","المقدرة","الفعلية"]
[null,"خاتم الخطبة"]
[null,"خواتم الزواج"]
[null,"ثوب الزفاف"]
[null,"طرحة/تاج الرأس"]
[null,"غير ذلك:"]
[null,"إجمالي الملابس",{"$f":"SUBTOTAL(109,الملابس[المقدرة])","v":0},{"$f":"SUBTOTAL(109,الملابس[الفعلية])","v":0}]
[]
[null,"الزينة"]
[null,"البند ","المقدرة","الفعلية"]
[null,"ديكور مقاعد الكنيسة/ المقاعد الأخرى"]
[null,"قطعة الديكور على الطاولة (تستثني الزهور)"]
[null,"الشموع"]
[null,"الإضاءة"]
[null,"البالونات"]
[null,"غير ذلك:"]
[null,"إجمالي الديكورات",{"$f":"SUBTOTAL(109,الديكورات[المقدرة])","v":0},{"$f":"SUBTOTAL(109,الديكورات[الفعلية])","v":0}]
[]
[null,"الهدايا"]
[null,"البند ","المقدرة","الفعلية"]
[null,"المدعّوين"]
[null,"العروس والعريس"]
[null,"الآباء"]
[null,"القراء/المشاركين الآخرين"]
[null,"غير ذلك:"]
[null,"إجمالي الهدايا",{"$f":"SUBTOTAL(109,الهدايا[المقدرة])","v":0},{"$f":"SUBTOTAL(109,الهدايا[الفعلية])","v":0}]
[]
[null,"زهور"]
[null,"البند ","المقدرة","الفعلية"]
[null,"باقات الزهور"]
[null,"زهرة بدلة العريس"]
[null,"الزهور الصغيرة للعروس والأصدقاء"]
[null,"الحفل"]
[null,"غير ذلك:"]
[null,"إجمالي الزهور",{"$f":"SUBTOTAL(109,الزهور[المقدرة])","v":0},{"$f":"SUBTOTAL(109,الزهور[الفعلية])","v":0}]
[]
[null,"الموسيقى"]
[null,"البند ","المقدرة","الفعلية"]
[null,"العازفين لمراسم الحفل"]
[null,"الفرقة/العازفين لحفل الاستقبال"]
[null,"غير ذلك:"]
[null,"إجمالي الموسيقى",{"$f":"SUBTOTAL(109,الموسيقى[المقدرة])","v":0},{"$f":"SUBTOTAL(109,الموسيقى[الفعلية])","v":0}]
[]
[null,"التصوير"]
[null,"البند ","المقدرة","الفعلية"]
[null,"الثياب الرسمية"]
[null,"الصور العفوية للحفل"]
[null,"مطبوعات إضافية"]
[null,"ألبوم الصور الفوتوغرافية"]
[null,"غير ذلك:"]
[null,"إجمالي التصوير",{"$f":"SUBTOTAL(109,التصوير[المقدرة])","v":0},{"$f":"SUBTOTAL(109,التصوير[الفعلية])","v":0}]
[]
[null,"الاستقبال "]
[null,"البند ","المقدرة","الفعلية"]
[null,"رسوم القاعة/الغرفة"]
[null,"الطاولات والكراسي"]
[null,"الطعام"]
[null,"المفارش"]
[null,"غير ذلك:"]
[null,"إجمالي حفل الاستقبال (يستثني من ذلك الموسيقى والديكورات)",{"$f":"SUBTOTAL(109,الاستقبال[المقدرة])","v":0},{"$f":"SUBTOTAL(109,الاستقبال[الفعلية])","v":0}]
[]
[null,"الخطابات/الطباعة"]
[null,"البند ","المقدرة","الفعلية"]
[null,"الدعوات"]
[null,"إعلانات الحفل"]
[null,"بطاقات الشكر"]
[null,"خطابات شخصية"]
[null,"غير ذلك:"]
[null,"إجمالي الخطابات/الطباعة",{"$f":"SUBTOTAL(109,الخطابات_والطباعة[المقدرة])","v":0},{"$f":"SUBTOTAL(109,الخطابات_والطباعة[الفعلية])","v":0}]
[]
[null,"وسيلة النقل"]
[null,"البند ","المقدرة","الفعلية"]
[null,"سيارات ليموزين/الحافلات"]
[null,"موقف السيارات"]
[null,"سيارات الأجرة"]
[null,"غير ذلك:"]
[null,"إجمالي وسائل النقل",{"$f":"SUBTOTAL(109,النقل[المقدرة])","v":0},{"$f":"SUBTOTAL(109,النقل[الفعلية])","v":0}]
[]
[null,"المصاريف الأخرى"]
[null,"البند ","المقدرة","الفعلية"]
[null,"الشيخ/الكاهن"]
[null,"رسوم مكان الحفل مسجد/كنيسة"]
[null,"منسق حفل الزواج"]
[null,"عشاء حفل الزفاف"]
[null,"غير ذلك:"]
[null,"إجمالي المصروفات الأخرى",{"$f":"SUBTOTAL(109,مصاريف_أخرى[المقدرة])","v":0},{"$f":"SUBTOTAL(109,مصاريف_أخرى[الفعلية])","v":0}]